fUSD/lending_fUSD_20260313
["ID","MTS","AMOUNT","RATE_DAILY","PERIOD"]
[408295309,1773371838560,500.0,8.799e-05,2]
[408295310,1773371842383,1697.56,0.00013592,2]
[408295311,1773371842865,500.0,8.799e-05,2]
[408295312,1773371847785,504.6681524,8.799e-05,2]
[408295313,1773371848014,500.0,8.799e-05,2]
[408295314,1773371848636,500.0,8.799e-05,2]
[408295315,1773371849232,500.0,8.799e-05,2]
[408295316,1773371852205,500.0,8.799e-05,2]
[408295317,1773371852687,500.0,8.799e-05,2]
[408295318,1773371855463,500.0,8.799e-05,2]
[408295319,1773371882457,-500.0,0.00013889,2]
[408295320,1773371882483,-300.0,0.00013889,2]
[408295321,1773371882510,-285.76800296,0.00013889,2]
[408295322,1773371882629,-6328.47399408,0.0001389,2]
[408295323,1773371885455,-10000.01,0.0001389,2]
[408295324,1773371891424,-1569.03879787,0.0001389,2]
[408295325,1773371891454,-175.39492079,0.00013924,2]
[408295326,1773371891483,-500.0,0.00013944,2]
[408295327,1773371891511,-150.0,0.00013989,2]
[408295328,1773371891540,-499.03336123,0.00013989,2]
[408295329,1773371891568,-347.78147038,0.00013989,2]
[408295330,1773371891598,-1000.0,0.0001399,2]
[408295331,1773371891747,-1517.51289946,0.0001399,2]
[408295332,1773371942589,-300.0,0.00013988,2]
[408295333,1773371942620,-500.0,0.00013989,2]
[408295334,1773371942649,-500.0,0.00013989,2]
[408295335,1773371942680,-500.0,0.00013989,2]
[408295336,1773371942709,-500.0,0.00013989,2]
[408295337,1773371942738,-500.0,0.00013989,2]
[408295338,1773371942767,-500.0,0.00013989,2]
[408295339,1773371942796,-500.0,0.00013989,2]
[408295340,1773371942825,-500.0,0.00013989,2]
[408295341,1773371942854,-500.0,0.00013989,2]
[408295342,1773371943002,-500.0,0.00013989,2]
[408295343,1773371943032,-500.0,0.00013989,2]
[408295344,1773371943062,-500.0,0.00013989,2]
[408295345,1773371943092,-500.0,0.00013989,2]
[408295346,1773371943122,-500.0,0.00013989,2]
[408295347,1773371943151,-500.0,0.00013989,2]
[408295348,1773371943180,-500.0,0.00013989,2]
[408295349,1773371943391,-500.0,0.00013989,2]
[408295350,1773371943426,-521.10719574,0.00013989,2]
[408295351,1773371943459,-457.79560852,0.00013989,2]
[408295352,1773371943551,-42.20439148,0.00013989,2]
[408295353,1773371943582,-500.0,0.00013989,2]
[408295354,1773371943611,-500.0,0.00013989,2]
[408295355,1773371943640,-500.0,0.00013989,2]
[408295356,1773371943668,-500.0,0.00013989,2]
[408295357,1773371943698,-500.0,0.00013989,2]
[408295358,1773371943728,-500.0,0.00013989,2]
[408295359,1773371943756,-500.0,0.00013989,2]
[408295360,1773371943785,-500.0,0.00013989,2]
[408295361,1773371943814,-500.0,0.00013989,2]
[408295362,1773371943842,-415.60121704,0.00013989,2]
[408295363,1773371944202,-84.39878296,0.00013989,2]
[408295364,1773371944211,-42.20439148,0.00013989,2]
[408295365,1773371944226,-457.79560852,0.00013989,2]
[408295366,1773371944235,-42.20439148,0.00013989,2]
[408295367,1773371945397,-194.10948546,0.00013989,2]
[408295368,1773371945431,-500.0,0.00013989,2]
[408295369,1773371945463,-500.0,0.00013989,2]
[408295370,1773371945495,-500.0,0.00013989,2]
[408295371,1773371945528,-300.0,0.00013989,2]
[408295372,1773371945560,-500.0,0.00013989,2]
[408295373,1773371945590,-416.25601137,0.00013989,2]
[408295374,1773371945620,-500.0,0.00013989,2]
[408295375,1773371945648,-500.0,0.00013989,2]
[408295376,1773371945796,-2179.27900634,0.0001399,2]
[408295377,1773371945822,-10000.01,0.0001399,2]
[408295378,1773371951584,-10000.01,0.0001399,2]
[408295379,1773371951708,-10000.01,0.0001399,2]
[408295380,1773371951817,-10000.01,0.0001399,2]
[408295381,1773371982587,5000.01,0.00013445,2]
[408295382,1773371982608,5000.01,0.00013445,2]
[408295383,1773372005845,-260.0,0.00013377,2]
[408295384,1773372005873,-3183.215303,0.00013377,2]
[408295385,1773372005902,-300.0,0.00013444,2]
[408295386,1773372005941,-1200.0,0.00013444,2]
[408295387,1773372006037,-113.579394,0.00013445,2]
[408295388,1773372006163,-113.609394,0.00013445,2]
[408295389,1773372006190,-9772.791212,0.00013445,2]
[408295390,1773372006276,-372.38775,0.00013456,2]
[408295391,1773372006311,-9255.2345,0.00013536,2]
[408295392,1773372006406,-3909.8255,0.00013536,2]
[408295393,1773372006444,-2180.359,0.0001389,2]
[408295394,1773372006551,-4464.50979917,0.0001389,2]
[408295395,1773372006590,-1070.99040166,0.0001389,2]
[408295396,1773372006682,-10000.01,0.0001389,2]
[408295397,1773372006810,-530.75294519,0.0001389,2]
[408295398,1773372006852,-159.0,0.00013445,3]
[408295399,1773372006862,-8779.50410962,0.0001389,2]
[408295400,1773372006951,-4589.66599038,0.0001389,2]
[408295401,1773372006993,-820.67801924,0.0001398,2]
[408295402,1773372007680,-84.50198076,0.0001398,2]
[408295403,1773372007709,-905.18,0.0001398,2]
[408295404,1773372007738,-905.18,0.0001398,2]
[408295405,1773372007767,-905.18,0.0001398,2]
[408295406,1773372007795,-905.18,0.0001398,2]
[408295407,1773372007895,-2589.56603848,0.0001399,2]
[408295408,1773372013444,-195.7334047,0.0001398,2]
[408295409,1773372013489,-9608.5431906,0.0001399,2]
[408295410,1773372017129,-10000.01,0.0001399,2]
[408295411,1773372017269,-10000.01,0.0001399,2]
[408295412,1773372020063,-10000.01,0.0001399,2]
[408295413,1773372020187,-10000.01,0.0001399,2]
[408295414,1773372020314,-10000.01,0.0001399,2]
[408295415,1773372023234,-10000.01,0.0001399,2]
[408295416,1773372023445,-10000.01,0.0001399,2]
[408295417,1773372023598,-10000.01,0.0001399,2]
[408295418,1773372026113,-573.6,0.000137,2]
[408295419,1773372026162,-8852.81,0.0001399,2]
[408295420,1773372026218,-10000.01,0.0001399,2]
[408295421,1773372026365,-10000.01,0.0001399,2]
[408295422,1773372029738,-10000.01,0.0001399,2]
[408295423,1773372029824,-10000.01,0.0001399,2]
[408295424,1773372029958,-10000.01,0.0001399,2]
[408295425,1773372032276,-10000.01,0.0001399,2]
[408295426,1773372035272,-10000.01,0.0001399,2]
[408295427,1773372035427,-10000.01,0.0001399,2]
[408295428,1773372035561,-10000.01,0.0001399,2]
[408295429,1773372038486,-10000.01,0.0001399,2]
[408295430,1773372041782,-2487.99,0.00011507,2]
[408295431,1773372136149,500.0,8.6e-05,2]
[408295432,1773372136224,900.73470973,8.6e-05,2]
[408295433,1773372143851,500.0,8.6e-05,2]
[408295434,1773372144330,895.98356385,8.6e-05,2]
[408295435,1773372151152,500.0,8.6e-05,2]
[408295436,1773372161633,159.736774,0.00013385,2]
[408295439,1773372224588,667.26,0.000123,2]
[408295443,1773372452017,494.85,6.495e-05,2]
[408295444,1773372452214,494.85,6.837e-05,2]
[408295445,1773372452523,494.85,7.179e-05,2]
[408295446,1773372452714,494.85,7.521e-05,2]
[408295447,1773372453150,494.85,7.863e-05,2]
[408295448,1773372453354,494.85,8.205e-05,2]
[408295449,1773372453556,494.85,8.546e-05,2]
[408295450,1773372453768,494.85,8.888e-05,2]
[408295451,1773372453993,494.85,9.23e-05,2]
[408295452,1773372454194,494.85,9.572e-05,2]
[408295453,1773372454391,51.51,9.914e-05,2]
[408295454,1773372454418,443.34,9.914e-05,2]
[408295455,1773372454606,494.85,0.00010256,2]
[408295456,1773372454809,494.85,0.00010598,2]
[408295457,1773372455020,494.85,0.00010939,2]
[408295458,1773372455236,494.85,0.00011281,2]
[408295459,1773372455420,494.85,0.00011623,2]
[408295460,1773372455830,494.85,0.00011965,2]
[408295461,1773372456025,494.85,0.00012307,2]
[408295462,1773372456212,494.85,0.00012649,2]
[408295463,1773372456407,494.85,0.00012991,2]
[408295464,1773372486188,4000.0,0.00012997,2]
[408295465,1773372486387,1000.01,0.00013322,2]
[408295466,1773372486409,2999.99,0.00013322,2]
[408295468,1773372504476,379.78814258,0.00013315,2]
[408295469,1773372546203,1500.0,0.00012972,2]
[408295470,1773372546636,158.0,0.00013456,2]
[408295471,1773372552099,-281.508391,0.00013456,2]
[408295472,1773372552124,-266.44239781,0.00013463,2]
[408295473,1773372552146,-5009.09814919,0.00013491,2]
[408295474,1773372571898,500.0,0.00013017,3]
[408295475,1773372581709,762.53,0.00013017,2]
[408295479,1773372631343,-1526.40458596,0.00013491,2]
[408295480,1773372631355,-545.03114429,0.00013491,2]
[408295481,1773372631396,-672.09,0.00013491,2]
[408295482,1773372631505,-790.00612056,0.00013491,2]
[408295483,1773372631515,-41.86946707,0.00013491,2]
[408295484,1773372631527,-219.13053293,0.00013491,2]
[408295485,1773372631536,-559.45,0.00013511,2]
[408295486,1773372631546,-500.0,0.00013556,2]
[408295487,1773372631556,-500.0,0.00013611,2]
[408295489,1773372631565,-1200.0,0.00013646,2]
[408295491,1773372631575,-300.0,0.00013646,2]
[408295492,1773372631584,-4000.0,0.00013647,2]
[408295493,1773372631594,-500.0,0.00013666,2]
[408295494,1773372631603,-300.0,0.00013709,2]
[408295496,1773372631614,-1373.095,0.0001371,2]
[408295497,1773372631623,-500.0,0.00013721,2]
[408295498,1773372631632,-500.0,0.00013776,2]
[408295499,1773372631642,-500.0,0.00013831,2]
[408295500,1773372631651,-500.0,0.00013886,2]
[408295501,1773372631661,-150.0,0.00013889,2]
[408295502,1773372631671,-11062.89448209,0.0001389,2]
[408295503,1773372631680,-6609.68587366,0.0001389,2]
[408295504,1773372631690,-18518.40404815,0.0001389,2]
[408295505,1773372631700,-6751.2313,0.0001389,2]
[408295506,1773372631711,-500.0,0.00013941,2]
[408295507,1773372631720,-4000.0,0.00013972,2]
[408295508,1773372631731,-200.0,0.00013982,2]
[408295509,1773372631742,-500.0,0.00013982,2]
[408295510,1773372631751,-500.0,0.00013982,2]
[408295511,1773372631760,-500.0,0.00013982,2]
[408295512,1773372631769,-500.0,0.00013982,2]
[408295513,1773372631779,-500.0,0.00013982,2]
[408295514,1773372631789,-162.444533,0.00013982,2]
[408295515,1773372631802,-500.0,0.00013989,2]
[408295516,1773372631811,-500.0,0.00013989,2]
[408295517,1773372631820,-500.0,0.00013989,2]
[408295518,1773372631829,-500.0,0.00013989,2]
[408295519,1773372631839,-500.0,0.00013989,2]
[408295520,1773372631848,-279.10193269,0.00013989,2]
[408295521,1773372631857,-567.57,0.0001399,2]
[408295522,1773372631867,-43751.98592888,0.0001399,2]
[408295524,1773372637528,-13992.98583388,0.0001399,2]
[408295525,1773372637689,-1318.597723,0.0001399,2]
[408295526,1773372637701,-293.48618486,0.0001399,2]
[408295540,1773372639700,-177624.04859718,0.0001399,2]
[408295541,1773372640168,-1978.56782122,0.0001399,2]
[408295542,1773372640183,-9052.30707143,0.0001399,2]
[408295545,1773372644471,-95831.55443723,0.0001399,2]
[408295546,1773372644483,-105086.35456744,0.0001399,2]
[408295547,1773372644493,-247199.96439213,0.0001399,2]
[408295548,1773372644528,-12269.5746065,0.0001399,2]
[408295549,1773372644584,-5857.25569745,0.0001399,2]
[408295550,1773372644595,-5710.90830266,0.0001399,2]
[408295553,1773372645346,-19920.27928037,0.0001399,2]
[408295554,1773372645404,-2535.27954607,0.0001399,2]
[408295558,1773372665223,5000.01,0.0001389,2]
[408295559,1773372665247,1756.028,0.0001389,2]
[408295560,1773372730853,154.0,0.0001398,2]
[408295561,1773372731100,3089.982,0.0001379,2]
[408295562,1773372731124,5000.01,0.0001379,2]
[408295563,1773372731146,5000.01,0.0001379,2]
[408295564,1773372738910,500.0,8.98e-05,2]
[408295565,1773372739188,512.43213366,8.98e-05,2]
[408295566,1773372742417,500.0,8.98e-05,2]
[408295567,1773372742897,500.0,8.98e-05,2]
[408295568,1773372743415,500.0,8.98e-05,2]
[408295569,1773372743895,534.39558561,8.98e-05,2]
[408295570,1773372744090,500.0,8.98e-05,2]
[408295571,1773372744870,500.0,8.98e-05,2]
[408295572,1773372745352,500.0,8.98e-05,2]
[408295573,1773372745833,500.0,8.98e-05,2]
[408295574,1773372747665,500.0,8.6e-05,2]
[408295575,1773372750337,969.69737499,8.6e-05,2]
[408295576,1773372751740,4030.31262501,0.000102,5]
[408295577,1773372751764,1502.68737499,0.000102,5]
[408295578,1773372751970,2891.0,0.000101,3]
[408295579,1773372752391,500.0,8.6e-05,2]
[408295580,1773372752880,106.32262501,8.6e-05,2]
[408295581,1773372752904,851.40057903,8.6e-05,2]
[408295582,1773372786461,156.0,0.0001359,2]
[408295583,1773372786699,156.0,0.0001359,2]
[408295584,1773372789281,159.0,0.0001359,2]
[408295585,1773372798159,258.481896,0.00013291,2]
[408295586,1773372845175,157.0,0.0001359,2]
[408295587,1773372905268,157.0,0.0001359,2]
[408295588,1773372905324,156.0,0.0001359,2]
[408295589,1773372948611,150.0,0.00013488,2]
[408295590,1773372965617,157.0,0.0001359,2]
[408295591,1773372975649,500.0,0.00013497,2]
[408295592,1773373007796,164.91146963,0.00013499,2]
[408295593,1773373031047,155.0,0.0001359,2]
[408295594,1773373036097,500.0,8.6e-05,2]
[408295595,1773373036666,500.0,8.6e-05,2]
[408295596,1773373038029,500.0,8.6e-05,2]
[408295597,1773373040995,322.21605534,8.6e-05,2]
[408295598,1773373041019,177.78394466,8.6e-05,2]
[408295599,1773373041494,515.47622575,8.6e-05,2]
[408295600,1773373042098,-164.91146962,0.00013595,2]
[408295601,1773373043017,500.0,8.6e-05,2]
[408295602,1773373043510,500.0,8.6e-05,2]
[408295603,1773373051000,500.0,8.6e-05,2]
[408295604,1773373058109,-1200.0,0.00013599,2]
[408295605,1773373058137,-300.0,0.00013599,2]
[408295606,1773373058164,-300.0,0.00013599,2]
[408295607,1773373073429,-250.0,0.00013599,2]
[408295608,1773373087116,155.0,0.00013599,2]
[408295609,1773373088648,-1425.34377594,0.000136,2]
[408295610,1773373089066,-2149.32244812,0.000136,2]
[408295611,1773373098977,701.36510376,0.000135,2]
[408295612,1773373099000,3106.70489624,0.000135,2]
[408295613,1773373103858,-768.62364995,0.000136,2]
[408295614,1773373103886,-872.99950339,0.000136,2]
[408295615,1773373103913,-846.29176355,0.000136,2]
[408295616,1773373104643,347.70325,0.00013288,2]
[408295617,1773373105138,-389.31600602,0.000136,2]
[408295618,1773373116729,166.66,0.00012785,2]
[408295619,1773373116947,166.66,0.00013054,2]
[408295620,1773373117146,166.66,0.00013323,2]
[408295621,1773373117351,166.66,0.00013592,2]
[408295622,1773373144949,155.0,0.00013619,2]
[408295623,1773373205442,155.0,0.00013619,2]
[408295624,1773373206303,156.0,0.00013619,2]
[408295625,1773373270392,156.0,0.00013619,2]
[408295626,1773373293330,4378.01,0.00013413,2]
[408295627,1773373293354,1603.05,0.00013413,2]
[408295628,1773373310747,164.91146962,0.00013589,2]
[408295629,1773373327012,156.0,0.00013619,2]
[408295630,1773373345060,500.0,8.619e-05,2]
[408295631,1773373345541,500.0,8.619e-05,2]
[408295632,1773373346015,500.0,8.619e-05,2]
[408295633,1773373346473,500.0,8.619e-05,2]
[408295634,1773373346898,500.0,8.619e-05,2]
[408295635,1773373347356,500.0,8.619e-05,2]
[408295636,1773373347654,76.04853038,8.619e-05,2]
[408295637,1773373347678,423.95146962,8.619e-05,2]
[408295638,1773373348117,500.0,8.619e-05,2]
[408295639,1773373350619,500.0,8.619e-05,2]
[408295640,1773373351068,500.0,8.619e-05,2]
[408295641,1773373351553,500.0,8.619e-05,2]
[408295642,1773373352033,567.73852976,8.619e-05,2]
[408295643,1773373353378,500.0,8.619e-05,2]
[408295644,1773373353864,756.3491332,8.619e-05,2]
[408295645,1773373354179,500.0,8.619e-05,2]
[408295646,1773373354270,251.97086742,8.619e-05,2]
[408295647,1773373354293,248.02913258,8.619e-05,2]
[408295648,1773373354740,500.0,8.619e-05,2]
[408295649,1773373355236,500.0,8.619e-05,2]
[408295650,1773373362214,981.67137029,8.619e-05,2]
[408295651,1773373363666,500.0,8.619e-05,2]
[408295652,1773373364167,500.0,8.619e-05,2]
[408295653,1773373364666,500.0,8.619e-05,2]
[408295654,1773373401036,169.17,0.00012919,2]
[408295657,1773373495912,200.0,0.00012892,2]
[408295658,1773373590552,3240.0,0.00013425,2]
[408295659,1773373614122,-156.0,0.0001359,3]
[408295660,1773373614146,-48.14286583,0.0001359,3]
[408295661,1773373831486,-255.0,0.00012831,2]
[408295663,1773373831496,-136.88,0.00012831,2]
[408295665,1773373831591,-255.83894739,0.00012831,2]
[408295666,1773373831603,-315.10105261,0.00012831,2]
[408295667,1773373831613,-330.6913094,0.00012853,2]
[408295668,1773373831697,-1669.3086906,0.00012853,2]
[408295669,1773373831708,-1200.0,0.00012874,2]
[408295670,1773373831717,-300.0,0.00012874,2]
[408295671,1773373831726,-33111.25,0.00012875,2]
[408295672,1773373831736,-25713.99,0.00013003,2]
[408295673,1773373831745,-250.0,0.00013306,2]
[408295674,1773373831755,-1589.04758502,0.00013609,2]
[408295675,1773373831764,-500.0,0.00013629,2]
[408295676,1773373831773,-504.29,0.00013629,2]
[408295677,1773373831783,-169.17,0.00013636,2]
[408295678,1773373831792,-500.0,0.00013684,2]
[408295679,1773373831802,-174.049,0.00013689,2]
[408295680,1773373831811,-1799.422,0.00013689,2]
[408295681,1773373832013,-150.0,0.00013689,2]
[408295682,1773373832024,-174.69968408,0.0001369,2]
[408295683,1773373832034,-12008.35035722,0.0001369,2]
[408295684,1773373832044,-5783.47513947,0.0001369,2]
[408295685,1773373832054,-500.0,0.0001369,2]
[408295686,1773373832063,-1000.0,0.0001369,2]
[408295687,1773373832072,-32942.6924,0.0001369,2]
[408295688,1773373832082,-200.0,0.00013699,2]
[408295689,1773373832091,-2201.05,0.00013699,2]
[408295690,1773373832101,-500.0,0.00013739,2]
[408295691,1773373832110,-578.7380282,0.00013745,2]
[408295692,1773373832119,-501.82915141,0.00013773,2]
[408295693,1773373832128,-501.50584164,0.00013773,2]
[408295694,1773373832137,-500.0,0.00013773,2]
[408295695,1773373832147,-500.0,0.00013773,2]
[408295696,1773373832156,-500.0,0.00013773,2]
[408295697,1773373832165,-500.0,0.00013773,2]
[408295698,1773373832175,-500.0,0.00013773,2]
[408295699,1773373832184,-500.0,0.00013773,2]
[408295700,1773373832195,-526.17740878,0.00013773,2]
[408295701,1773373832204,-500.0,0.00013773,2]
[408295702,1773373832213,-500.0,0.00013773,2]
[408295703,1773373832222,-500.0,0.00013773,2]
[408295704,1773373832231,-536.66,0.00013789,2]
[408295705,1773373832240,-615.8329075,0.00013789,2]
[408295706,1773373832249,-566.79968015,0.00013789,2]
[408295707,1773373832258,-507.82734727,0.00013789,2]
[408295708,1773373832267,-524.24576923,0.00013789,2]
[408295709,1773373832276,-500.0,0.00013789,2]
[408295710,1773373832286,-500.0,0.00013789,2]
[408295711,1773373832295,-500.0,0.00013789,2]
[408295712,1773373832304,-522.10171958,0.00013789,2]
[408295713,1773373832313,-403600.31747098,0.0001379,2]
[408295714,1773373832325,-39859.83420813,0.0001379,2]
[408295715,1773373832335,-31737.58217002,0.0001379,2]
[408295716,1773373832346,-99994.00416445,0.0001379,2]
[408295721,1773373837847,-71260.78491232,0.0001379,2]
[408295729,1773373839828,-946.05260061,0.0001379,2]
[408295730,1773373840140,-259.39905185,0.0001379,2]
[408295736,1773373842814,-22.68254068,0.0001379,2]
[408295737,1773373842826,-107898.29723066,0.0001379,2]
[408295738,1773373842838,-198224.73666388,0.0001379,2]
[408295739,1773373842847,-500.0,0.00013794,2]
[408295740,1773373842857,-500.0,0.00013794,2]
[408295741,1773373842866,-606.0,0.00013806,2]
[408295742,1773373842876,-198.79601981,0.00013806,2]
[408295743,1773373842885,-500.0,0.00013849,2]
[408295744,1773373842895,-166.66,0.00013861,2]
[408295745,1773373842904,-500.0,0.00013904,2]
[408295746,1773373842914,-500.0,0.00013959,2]
[408295747,1773373842923,-166.66,0.00013964,2]
[408295749,1773373842936,-1000.0,0.00013986,2]
[408295750,1773373842945,-1000.0,0.00013986,2]
[408295751,1773373842955,-1000.0,0.00013986,2]
[408295752,1773373842964,-1000.0,0.00013986,2]
[408295753,1773373842974,-567.57,0.00013987,2]
[408295754,1773373842983,-151.0,0.00013987,2]
[408295755,1773373842993,-515.04799021,0.00013989,2]
[408295756,1773373843002,-515.94518395,0.00013989,2]
[408295757,1773373843011,-500.0,0.00013989,2]
[408295758,1773373843021,-500.0,0.00013989,2]
[408295759,1773373843030,-500.0,0.00013989,2]
[408295760,1773373843041,-500.0,0.00013989,2]
[408295761,1773373843050,-500.9565902,0.00013989,2]
[408295762,1773373843060,-502.07751418,0.00013989,2]
[408295763,1773373843070,-500.0,0.00013989,2]
[408295764,1773373843079,-500.0,0.00013989,2]
[408295765,1773373843088,-500.0,0.00013989,2]
[408295766,1773373843098,-500.0,0.00013989,2]
[408295767,1773373843107,-500.0,0.00013989,2]
[408295768,1773373843117,-536.66,0.00013989,2]
[408295769,1773373843126,-500.0,0.00013989,2]
[408295770,1773373843139,-500.0,0.00013989,2]
[408295772,1773373843148,-500.0,0.00013989,2]
[408295774,1773373843158,-500.0,0.00013989,2]
[408295775,1773373843167,-500.0,0.00013989,2]
[408295776,1773373843177,-506.81196738,0.00013989,2]
[408295777,1773373843186,-506.66605589,0.00013989,2]
[408295778,1773373843196,-500.0,0.00013989,2]
[408295779,1773373843206,-514.33170508,0.00013989,2]
[408295780,1773373843216,-297.89846423,0.00013989,2]
[408295781,1773373843225,-500.0,0.00013989,2]
[408295782,1773373843235,-500.0,0.00013989,2]
[408295783,1773373843244,-522.37767906,0.00013989,2]
[408295784,1773373843253,-515.52448038,0.00013989,2]
[408295785,1773373843263,-501.88920658,0.00013989,2]
[408295786,1773373843272,-540.40783545,0.00013989,2]
[408295787,1773373843281,-500.0,0.00013989,2]
[408295788,1773373843291,-500.0,0.00013989,2]
[408295789,1773373843300,-500.0,0.00013989,2]
[408295790,1773373843309,-500.0,0.00013989,2]
[408295791,1773373843322,-500.0,0.00013989,2]
[408295792,1773373843332,-500.0,0.00013989,2]
[408295793,1773373843342,-500.0,0.00013989,2]
[408295794,1773373843352,-500.0,0.00013989,2]
[408295795,1773373843361,-500.0,0.00013989,2]
[408295796,1773373843371,-500.0,0.00013989,2]
[408295797,1773373843380,-500.0,0.00013989,2]
[408295798,1773373843389,-500.0,0.00013989,2]
[408295799,1773373843400,-500.0,0.00013989,2]
[408295800,1773373843410,-500.0,0.00013989,2]
[408295801,1773373843419,-500.0,0.00013989,2]
[408295802,1773373843429,-500.0,0.00013989,2]
[408295803,1773373843440,-500.0,0.00013989,2]
[408295804,1773373843451,-500.0,0.00013989,2]
[408295805,1773373843462,-500.0,0.00013989,2]
[408295806,1773373843472,-500.0,0.00013989,2]
[408295807,1773373843482,-500.0,0.00013989,2]
[408295808,1773373843493,-500.0,0.00013989,2]
[408295809,1773373843503,-500.0,0.00013989,2]
[408295810,1773373843513,-500.0,0.00013989,2]
[408295811,1773373843528,-500.0,0.00013989,2]
[408295812,1773373843538,-1516.0,0.0001399,2]
[408295813,1773373843548,-1626.0,0.00014004,2]
[408295814,1773373843558,-195.84398187,0.00014009,2]
[408295815,1773373843568,-500.0,0.00014014,2]
[408295816,1773373843578,-405.39249395,0.00014025,2]
[408295817,1773373843588,-500.0,0.00014027,2]
[408295818,1773373843598,-153.0,0.00014034,2]
[408295819,1773373843608,-1995.0,0.00014038,2]
[408295820,1773373843617,-214.7,0.00014059,2]
[408295821,1773373843627,-214.7,0.00014059,2]
[408295822,1773373843637,-214.7,0.00014059,2]
[408295823,1773373843646,-214.7,0.00014059,2]
[408295824,1773373843656,-214.7,0.00014059,2]
[408295825,1773373843666,-214.7,0.00014059,2]
[408295826,1773373843675,-214.7,0.00014059,2]
[408295827,1773373843685,-214.7,0.00014059,2]
[408295828,1773373843695,-500.0,0.00014069,2]
[408295829,1773373843704,-532.16208062,0.00014089,2]
[408295830,1773373843718,-500.0,0.00014089,2]
[408295831,1773373843728,-500.0,0.00014089,2]
[408295832,1773373843737,-500.0,0.00014089,2]
[408295833,1773373843747,-530.81898155,0.00014089,2]
[408295834,1773373843756,-211.95758795,0.0001409,2]
[408295835,1773373843766,-2028.91481876,0.0001409,2]
[408295836,1773373843775,-4878.23424189,0.0001409,2]
[408295837,1773373843785,-4978.65811159,0.0001409,2]
[408295838,1773373843794,-5354.77254137,0.0001409,2]
[408295839,1773373843804,-4401.69594246,0.0001409,2]
[408295840,1773373843813,-420.0,0.00014121,2]
[408295841,1773373843822,-500.0,0.00014124,2]
[408295842,1773373843832,-166.66,0.00014131,2]
[408295843,1773373843842,-153.46310958,0.00014142,2]
[408295844,1773373843852,-161.946409,0.00014142,2]
[408295845,1773373843861,-152.35349863,0.00014142,2]
[408295846,1773373843870,-500.0,0.00014142,2]
[408295847,1773373843879,-500.0,0.00014142,2]
[408295848,1773373843889,-150.0,0.00014142,2]
[408295849,1773373843899,-1680.0,0.00014162,2]
[408295850,1773373843908,-300.1591244,0.00014163,2]
[408295851,1773373843920,-203.8379162,0.00014163,2]
[408295852,1773373843930,-600.0,0.00014163,2]
[408295853,1773373843940,-300.0,0.00014163,2]
[408295854,1773373843949,-500.0,0.00014179,2]
[408295855,1773373843959,-1792.0,0.00014187,2]
[408295856,1773373843969,-1000.0,0.0001419,2]
[408295857,1773373843978,-1000.0,0.0001419,2]
[408295858,1773373843987,-195.29084869,0.0001419,2]
[408295859,1773373843998,-500.0,0.00014197,2]
[408295860,1773373844008,-500.0,0.00014197,2]
[408295861,1773373844017,-150.0,0.00014197,2]
[408295862,1773373844027,-14227.72,0.00014219,2]
[408295863,1773373844036,-156.213,0.00014233,2]
[408295864,1773373844045,-467.01829713,0.00014252,2]